[Event "Titled Tuesday Blitz July 18 Early 2023"]
[White "Gamboa, Juan Pablo"]
[Black "Mortazavi, Ali"]
[WhiteFideId "105180"]
[BlackFideId "401323"]
[WhiteElo "1958"]
[BlackElo "2520"]
[Result "1/2-1/2"]
[Round "3"]
[TimeControl "180+2"]
[Date "2023.07.18"]
[WhiteClock "0:00:07"]
[BlackClock "0:00:15"]
[Board "157"]

1. c4 {[%clk 0:03:00]}  Nf6 {[%clk 0:02:54]} 2. Nc3 {[%clk 0:03:00]}  g6 {[%clk 0:02:55]} 3. g3 {[%clk 0:03:00]}  d6 {[%clk 0:02:56]} 4. Bg2 {[%clk 0:03:00]}  Bg7 {[%clk 0:02:57]} 5. e4 {[%clk 0:03:01]}  O-O {[%clk 0:02:58]} 6. Nge2 {[%clk 0:03:00]}  c5 {[%clk 0:02:58]} 7. d3 {[%clk 0:03:00]}  Nc6 {[%clk 0:02:59]} 8. Be3 {[%clk 0:02:58]}  Ne8 {[%clk 0:02:59]} 9. Qd2 {[%clk 0:02:59]}  Nd4 {[%clk 0:02:58]} 10. O-O {[%clk 0:02:53]}  Nc7 {[%clk 0:02:58]} 11. Bh6 {[%clk 0:02:51]}  Nxe2+ {[%clk 0:02:42]} 12. Nxe2 {[%clk 0:02:49]}  e5 {[%clk 0:02:31]} 13. Bxg7 {[%clk 0:02:46]}  Kxg7 {[%clk 0:02:31]} 14. f4 {[%clk 0:02:47]}  f6 {[%clk 0:02:30]} 15. b4 {[%clk 0:02:37]}  b6 {[%clk 0:02:17]} 16. a4 {[%clk 0:02:27]}  cxb4 {[%clk 0:02:03]} 17. Qxb4 {[%clk 0:02:26]}  Na6 {[%clk 0:01:51]} 18. Qa3 {[%clk 0:02:10]}  Bg4 {[%clk 0:01:47]} 19. Nc3 {[%clk 0:02:03]}  Be6 {[%clk 0:01:47]} 20. Nb5 {[%clk 0:01:56]}  Nc5 {[%clk 0:01:46]} 21. f5 {[%clk 0:01:30]}  Bf7 {[%clk 0:01:41]} 22. fxg6 {[%clk 0:01:23]}  hxg6 {[%clk 0:01:40]} 23. Rf3 {[%clk 0:01:09]}  Be6 {[%clk 0:01:40]} 24. Raf1 {[%clk 0:01:07]}  a6 {[%clk 0:01:21]} 25. Nc3 {[%clk 0:01:06]}  Qd7 {[%clk 0:01:20]} 26. Nd5 {[%clk 0:01:05]}  Bxd5 {[%clk 0:01:20]} 27. cxd5 {[%clk 0:00:50]}  Qxa4 {[%clk 0:01:20]} 28. Qxa4 {[%clk 0:00:48]}  Nxa4 {[%clk 0:01:20]} 29. Ra1 {[%clk 0:00:36]}  Nc5 {[%clk 0:01:19]} 30. Bf1 {[%clk 0:00:30]}  b5 {[%clk 0:01:18]} 31. Rf2 {[%clk 0:00:22]}  Rfb8 {[%clk 0:01:04]} 32. Rb2 {[%clk 0:00:21]}  Rb6 {[%clk 0:01:00]} 33. Kf2 {[%clk 0:00:20]}  Rab8 {[%clk 0:00:58]} 34. Ke3 {[%clk 0:00:21]}  a5 {[%clk 0:00:59]} 35. d4 {[%clk 0:00:21]}  exd4+ {[%clk 0:00:59]} 36. Kxd4 {[%clk 0:00:22]}  a4 {[%clk 0:00:55]} 37. Rb4 {[%clk 0:00:19]}  Nb3+ {[%clk 0:00:55]} 38. Rxb3 {[%clk 0:00:18]}  axb3 {[%clk 0:00:55]} 39. Rb1 {[%clk 0:00:19]}  b4 {[%clk 0:00:50]} 40. Rxb3 {[%clk 0:00:19]}  Rc8 {[%clk 0:00:51]} 41. Bc4 {[%clk 0:00:18]}  g5 {[%clk 0:00:50]} 42. h4 {[%clk 0:00:17]}  gxh4 {[%clk 0:00:50]} 43. gxh4 {[%clk 0:00:18]}  Rh8 {[%clk 0:00:50]} 44. Rg3+ {[%clk 0:00:16]}  Kf7 {[%clk 0:00:50]} 45. Rh3 {[%clk 0:00:15]}  Rh5 {[%clk 0:00:45]} 46. Bb3 {[%clk 0:00:15]}  Rb8 {[%clk 0:00:41]} 47. Bd1 {[%clk 0:00:15]}  Rh6 {[%clk 0:00:38]} 48. h5 {[%clk 0:00:15]}  Rc8 {[%clk 0:00:32]} 49. Rb3 {[%clk 0:00:14]}  Rb8 {[%clk 0:00:31]} 50. Bg4 {[%clk 0:00:14]}  Rhh8 {[%clk 0:00:30]} 51. Kc4 {[%clk 0:00:14]}  Rhg8 {[%clk 0:00:29]} 52. Be6+ {[%clk 0:00:13]}  Kg7 {[%clk 0:00:30]} 53. Bxg8 {[%clk 0:00:12]}  Rc8+ {[%clk 0:00:30]} 54. Kxb4 {[%clk 0:00:11]}  Rxg8 {[%clk 0:00:31]} 55. Kc4 {[%clk 0:00:10]}  Kh6 {[%clk 0:00:31]} 56. Rb7 {[%clk 0:00:10]}  Re8 {[%clk 0:00:30]} 57. Kd3 {[%clk 0:00:08]}  Kxh5 {[%clk 0:00:29]} 58. Rd7 {[%clk 0:00:08]}  Kg4 {[%clk 0:00:28]} 59. Rxd6 {[%clk 0:00:08]}  Kg5 {[%clk 0:00:28]} 60. Re6 {[%clk 0:00:09]}  Ra8 {[%clk 0:00:26]} 61. d6 {[%clk 0:00:08]}  Ra1 {[%clk 0:00:24]} 62. Kd4 {[%clk 0:00:08]}  Kg6 {[%clk 0:00:24]} 63. Kc5 {[%clk 0:00:08]}  Kf7 {[%clk 0:00:23]} 64. Re7+ {[%clk 0:00:07]}  Kf8 {[%clk 0:00:23]} 65. Kd5 {[%clk 0:00:07]}  Re1 {[%clk 0:00:20]} 66. e5 {[%clk 0:00:05]}  fxe5 {[%clk 0:00:18]} 67. Rxe5 {[%clk 0:00:05]}  Rd1+ {[%clk 0:00:19]} 68. Ke6 {[%clk 0:00:05]}  Ke8 {[%clk 0:00:17]} 69. Rh5 {[%clk 0:00:05]}  Re1+ {[%clk 0:00:18]} 70. Kd5 {[%clk 0:00:05]}  Rd1+ {[%clk 0:00:17]} 71. Kc6 {[%clk 0:00:05]}  Rc1+ {[%clk 0:00:17]} 72. Kb7 {[%clk 0:00:06]}  Kd7 {[%clk 0:00:17]} 73. Rh7+ {[%clk 0:00:04]}  Kxd6 {[%clk 0:00:16]} 74. Rh6+ {[%clk 0:00:04]}  Kd7 {[%clk 0:00:17]} 75. Rh7+ {[%clk 0:00:05]}  Kd6 {[%clk 0:00:17]} 76. Rh6+ {[%clk 0:00:06]}  Kd5 {[%clk 0:00:17]} 77. Rh5+ {[%clk 0:00:06]}  Ke6 {[%clk 0:00:18]} 78. Rh6+ {[%clk 0:00:06]}  Kf7 {[%clk 0:00:17]} 79. Rh7+ {[%clk 0:00:06]}  Kg6 {[%clk 0:00:17]} 80. Rc7 {[%clk 0:00:06]}  Rh1 {[%clk 0:00:16]} 81. Rc6+ {[%clk 0:00:06]}  Kf7 {[%clk 0:00:17]} 82. Rc7+ {[%clk 0:00:06]}  Ke6 {[%clk 0:00:18]} 83. Rc6+ {[%clk 0:00:06]}  Kd5 {[%clk 0:00:18]} 84. Rc7 {[%clk 0:00:06]}  Rb1+ {[%clk 0:00:18]} 85. Kc8 {[%clk 0:00:07]}  Kd6 {[%clk 0:00:19]} 86. Rd7+ {[%clk 0:00:07]}  Ke6 {[%clk 0:00:19]} 87. Rh7 {[%clk 0:00:06]}  Rc1+ {[%clk 0:00:17]} 88. Kd8 {[%clk 0:00:05]}  Rd1+ {[%clk 0:00:17]} 89. Ke8 {[%clk 0:00:05]}  Ra1 {[%clk 0:00:17]} 90. Rh6+ {[%clk 0:00:05]}  Kf5 {[%clk 0:00:18]} 91. Rh5+ {[%clk 0:00:05]}  Kg6 {[%clk 0:00:18]} 92. Rc5 {[%clk 0:00:06]}  Rd1 {[%clk 0:00:18]} 93. Rc6+ {[%clk 0:00:06]}  Kg7 {[%clk 0:00:18]} 94. Rc7+ {[%clk 0:00:06]}  Kf6 {[%clk 0:00:19]} 95. Rf7+ {[%clk 0:00:06]}  Ke6 {[%clk 0:00:19]} 96. Re7+ {[%clk 0:00:06]}  Kf6 {[%clk 0:00:20]} 97. Rf7+ {[%clk 0:00:07]}  Kg6 {[%clk 0:00:21]} 98. Rd7 {[%clk 0:00:07]}  Ra1 {[%clk 0:00:18]} 99. Rd6+ {[%clk 0:00:06]}  Kf5 {[%clk 0:00:19]} 100. Rd5+ {[%clk 0:00:07]}  Ke6 {[%clk 0:00:19]} 101. Rd8 {[%clk 0:00:06]}  Ra7 {[%clk 0:00:18]} 102. Kf8 {[%clk 0:00:06]}  Rh7 {[%clk 0:00:18]} 103. Rd1 {[%clk 0:00:03]}  Rf7+ {[%clk 0:00:16]} 104. Kg8 {[%clk 0:00:03]}  Rf2 {[%clk 0:00:16]} 105. Re1+ {[%clk 0:00:03]}  Kf6 {[%clk 0:00:17]} 106. Rd1 {[%clk 0:00:03]}  Rg2+ {[%clk 0:00:14]} 107. Kf8 {[%clk 0:00:03]}  Ra2 {[%clk 0:00:13]} 108. Rf1+ {[%clk 0:00:04]}  Ke6 {[%clk 0:00:13]} 109. Re1+ {[%clk 0:00:04]}  Kd6 {[%clk 0:00:14]} 110. Rd1+ {[%clk 0:00:05]}  Kc7 {[%clk 0:00:14]} 111. Rc1+ {[%clk 0:00:05]}  Kb8 {[%clk 0:00:14]} 112. Rb1+ {[%clk 0:00:06]}  Ka7 {[%clk 0:00:15]} 113. Ke7 {[%clk 0:00:06]}  Re2+ {[%clk 0:00:15]} 114. Kd6 {[%clk 0:00:06]}  Re8 {[%clk 0:00:14]} 115. Kc7 {[%clk 0:00:06]}  Re7+ {[%clk 0:00:14]} 116. Kd6 {[%clk 0:00:06]}  Rh7 {[%clk 0:00:14]} 117. Kc6 {[%clk 0:00:06]}  Rh6+ {[%clk 0:00:14]} 118. Kc7 {[%clk 0:00:06]}  Rh7+ {[%clk 0:00:15]} 119. Kc6 {[%clk 0:00:06]}  Rh6+ {[%clk 0:00:15]} 120. Kc7 {[%clk 0:00:06]}  Rh7+ {[%clk 0:00:15]} 121. Kc6 {[%clk 0:00:07]} 1/2-1/2


[Site "https://www.chess.com"]

[Event "Titled Tuesday Blitz July 18 Early 2023"]
[White "Skiadopoulos, Nikolaos"]
[Black "Horak, Martin"]
[WhiteFideId "4200772"]
[BlackFideId "367095"]
[WhiteElo "1905"]
[BlackElo "2517"]
[Result "0-1"]
[Round "3"]
[TimeControl "180+2"]
[Date "2023.07.18"]
[WhiteClock "0:00:00"]
[BlackClock "0:00:28"]
[Board "158"]

1. e4 {[%clk 0:03:00]}  c5 {[%clk 0:02:59]} 2. Nf3 {[%clk 0:02:59]}  Nc6 {[%clk 0:02:56]} 3. c3 {[%clk 0:02:56]}  d5 {[%clk 0:02:54]} 4. exd5 {[%clk 0:02:56]}  Qxd5 {[%clk 0:02:55]} 5. d4 {[%clk 0:02:56]}  g6 {[%clk 0:02:56]} 6. Nbd2 {[%clk 0:02:55]}  cxd4 {[%clk 0:02:50]} 7. Bc4 {[%clk 0:02:54]}  Qd8 {[%clk 0:02:49]} 8. Qb3 {[%clk 0:02:31]}  e6 {[%clk 0:02:46]} 9. O-O {[%clk 0:01:59]}  Nf6 {[%clk 0:02:38]} 10. Nxd4 {[%clk 0:01:48]}  Nxd4 {[%clk 0:02:37]} 11. cxd4 {[%clk 0:01:48]}  Bg7 {[%clk 0:02:29]} 12. Nf3 {[%clk 0:01:44]}  O-O {[%clk 0:02:22]} 13. Bg5 {[%clk 0:01:43]}  b6 {[%clk 0:02:17]} 14. Rad1 {[%clk 0:01:25]}  Bb7 {[%clk 0:02:14]} 15. Ne5 {[%clk 0:01:12]}  h6 {[%clk 0:01:42]} 16. Bxf6 {[%clk 0:00:39]}  Qxf6 {[%clk 0:01:41]} 17. Nd7 {[%clk 0:00:34]}  Qg5 {[%clk 0:01:40]} 18. d5 {[%clk 0:00:32]}  Rfd8 {[%clk 0:01:37]} 19. f4 {[%clk 0:00:28]}  Qe7 {[%clk 0:00:51]} 20. dxe6 {[%clk 0:00:27]}  fxe6 {[%clk 0:00:52]} 21. Bxe6+ {[%clk 0:00:26]}  Kh8 {[%clk 0:00:52]} 22. Rfe1 {[%clk 0:00:20]}  Re8 {[%clk 0:00:43]} 23. Bh3 {[%clk 0:00:15]}  Qxe1+ {[%clk 0:00:38]} 24. Rxe1 {[%clk 0:00:15]}  Rxe1+ {[%clk 0:00:39]} 25. Kf2 {[%clk 0:00:16]}  Re4 {[%clk 0:00:34]} 26. g3 {[%clk 0:00:14]}  Rae8 {[%clk 0:00:33]} 27. Ne5 {[%clk 0:00:12]}  Bxe5 {[%clk 0:00:30]} 28. fxe5 {[%clk 0:00:00]}  Rf8+ {[%clk 0:00:28]} 0-1


[Site "https://www.chess.com"]

[Event "Titled Tuesday Blitz July 18 Early 2023"]
[White "Zacurdajev, Dmitry"]
[Black "Molina, Roberto Junio Brito"]
[WhiteFideId "4196309"]
[BlackFideId "2109450"]
[WhiteElo "2408"]
[BlackElo "2894"]
[Result "1-0"]
[Round "3"]
[TimeControl "180+2"]
[Date "2023.07.18"]
[WhiteClock "0:01:02"]
[BlackClock "0:00:42"]
[Board "159"]

1. d4 {[%clk 0:02:57]}  d5 {[%clk 0:02:59]} 2. c4 {[%clk 0:02:57]}  c6 {[%clk 0:02:59]} 3. Nc3 {[%clk 0:02:57]}  dxc4 {[%clk 0:02:58]} 4. a4 {[%clk 0:02:50]}  e5 {[%clk 0:02:47]} 5. dxe5 {[%clk 0:02:46]}  Qxd1+ {[%clk 0:02:47]} 6. Kxd1 {[%clk 0:02:42]}  Be6 {[%clk 0:02:46]} 7. e4 {[%clk 0:02:37]}  Nd7 {[%clk 0:02:43]} 8. f4 {[%clk 0:02:34]}  g6 {[%clk 0:02:41]} 9. Nf3 {[%clk 0:02:31]}  Bb4 {[%clk 0:02:29]} 10. Nd4 {[%clk 0:02:27]}  Nc5 {[%clk 0:02:28]} 11. Nxe6 {[%clk 0:02:20]}  fxe6 {[%clk 0:02:12]} 12. Bxc4 {[%clk 0:02:16]}  Rd8+ {[%clk 0:01:19]} 13. Kc2 {[%clk 0:02:14]}  Rd4 {[%clk 0:01:17]} 14. b3 {[%clk 0:01:52]}  Nxe4 {[%clk 0:01:08]} 15. Nxe4 {[%clk 0:01:45]}  Rxe4 {[%clk 0:01:09]} 16. Kd3 {[%clk 0:01:27]}  Re1 {[%clk 0:01:08]} 17. Rxe1 {[%clk 0:01:26]}  Bxe1 {[%clk 0:01:09]} 18. Ba3 {[%clk 0:01:24]}  Ba5 {[%clk 0:01:03]} 19. Bxe6 {[%clk 0:01:24]}  Ne7 {[%clk 0:01:03]} 20. Ke4 {[%clk 0:01:19]}  Rf8 {[%clk 0:00:58]} 21. Rd1 {[%clk 0:01:18]}  g5 {[%clk 0:00:49]} 22. Bd7+ {[%clk 0:01:02]}  Kf7 {[%clk 0:00:46]} 23. e6+ {[%clk 0:01:02]}  Kf6 {[%clk 0:00:42]} 24. fxg5+ {[%clk 0:01:02]} 1-0


[Site "https://www.chess.com"]

[Event "Titled Tuesday Blitz July 18 Early 2023"]
[White "Villarreal, Agustin"]
[Black "Remizov, Yaroslav"]
[WhiteFideId "125687"]
[BlackFideId "34134015"]
[WhiteElo "2382"]
[BlackElo "2752"]
[Result "0-1"]
[Round "3"]
[TimeControl "180+2"]
[Date "2023.07.18"]
[WhiteClock "0:00:00"]
[BlackClock "0:00:59"]
[Board "160"]

1. e4 {[%clk 0:03:00]}  c6 {[%clk 0:02:59]} 2. d4 {[%clk 0:03:00]}  d5 {[%clk 0:03:00]} 3. exd5 {[%clk 0:02:59]}  cxd5 {[%clk 0:03:01]} 4. Bd3 {[%clk 0:02:59]}  Nc6 {[%clk 0:03:01]} 5. c3 {[%clk 0:02:59]}  Nf6 {[%clk 0:03:02]} 6. Bf4 {[%clk 0:02:58]}  Bg4 {[%clk 0:03:01]} 7. Nf3 {[%clk 0:02:59]}  e6 {[%clk 0:03:01]} 8. Nbd2 {[%clk 0:02:57]}  Bd6 {[%clk 0:03:01]} 9. Bxd6 {[%clk 0:02:57]}  Qxd6 {[%clk 0:03:02]} 10. h3 {[%clk 0:02:57]}  Bxf3 {[%clk 0:03:02]} 11. Nxf3 {[%clk 0:02:54]}  O-O {[%clk 0:03:03]} 12. O-O {[%clk 0:02:53]}  Qc7 {[%clk 0:03:03]} 13. Re1 {[%clk 0:02:52]}  Rab8 {[%clk 0:03:01]} 14. Qe2 {[%clk 0:02:51]}  a6 {[%clk 0:03:00]} 15. a4 {[%clk 0:02:51]}  g6 {[%clk 0:02:59]} 16. g3 {[%clk 0:02:37]}  Kg7 {[%clk 0:02:59]} 17. Kg2 {[%clk 0:02:37]}  Rfe8 {[%clk 0:02:58]} 18. Qe3 {[%clk 0:02:35]}  Re7 {[%clk 0:02:58]} 19. Re2 {[%clk 0:02:28]}  b5 {[%clk 0:02:58]} 20. b4 {[%clk 0:02:22]}  Nd7 {[%clk 0:02:38]} 21. Qd2 {[%clk 0:01:19]}  Ree8 {[%clk 0:02:23]} 22. Ree1 {[%clk 0:01:15]}  Rec8 {[%clk 0:02:23]} 23. Qe2 {[%clk 0:01:13]}  Na7 {[%clk 0:02:16]} 24. Rec1 {[%clk 0:01:09]}  Rb6 {[%clk 0:02:06]} 25. Nd2 {[%clk 0:01:03]}  Rc6 {[%clk 0:02:00]} 26. axb5 {[%clk 0:00:55]}  Nxb5 {[%clk 0:02:00]} 27. Bxb5 {[%clk 0:00:53]}  axb5 {[%clk 0:02:00]} 28. Qxb5 {[%clk 0:00:40]}  Nb6 {[%clk 0:02:01]} 29. Ra6 {[%clk 0:00:28]}  Rb8 {[%clk 0:01:54]} 30. Nb3 {[%clk 0:00:23]}  Rd6 {[%clk 0:01:46]} 31. Nc5 {[%clk 0:00:22]}  Nc4 {[%clk 0:01:41]} 32. Qa4 {[%clk 0:00:21]}  Rdb6 {[%clk 0:01:34]} 33. Ra7 {[%clk 0:00:20]}  Qd8 {[%clk 0:01:28]} 34. Ra1 {[%clk 0:00:21]}  Qg5 {[%clk 0:01:24]} 35. Qd1 {[%clk 0:00:20]}  Qf5 {[%clk 0:01:21]} 36. Qe2 {[%clk 0:00:19]}  h5 {[%clk 0:01:19]} 37. Rd7 {[%clk 0:00:19]}  Rf8 {[%clk 0:01:15]} 38. Raa7 {[%clk 0:00:20]}  Kg8 {[%clk 0:01:10]} 39. Na4 {[%clk 0:00:20]}  Rbb8 {[%clk 0:01:07]} 40. Nc5 {[%clk 0:00:21]}  Nb6 {[%clk 0:01:02]} 41. Nxe6 {[%clk 0:00:00]}  Nxd7 {[%clk 0:00:59]} 0-1


[Site "https://www.chess.com"]

[Event "Titled Tuesday Blitz July 18 Early 2023"]
[White "Vaibhav Jayant Raut"]
[Black "TomLiu777"]
[WhiteFideId "5089034"]
[WhiteElo "2598"]
[BlackElo "2348"]
[Result "1-0"]
[Round "3"]
[TimeControl "180+2"]
[Date "2023.07.18"]
[WhiteClock "0:00:42"]
[BlackClock "0:00:00"]
[Board "162"]

1. e4 {[%clk 0:03:00]}  e6 {[%clk 0:02:23]} 2. Qe2 {[%clk 0:02:59]}  c5 {[%clk 0:02:23]} 3. d3 {[%clk 0:02:59]}  Nc6 {[%clk 0:02:22]} 4. Nf3 {[%clk 0:03:00]}  d6 {[%clk 0:02:18]} 5. g3 {[%clk 0:03:00]}  g6 {[%clk 0:02:17]} 6. h4 {[%clk 0:02:59]}  h5 {[%clk 0:02:15]} 7. Bg2 {[%clk 0:03:00]}  Bg7 {[%clk 0:02:16]} 8. O-O {[%clk 0:03:00]}  Nge7 {[%clk 0:02:15]} 9. c3 {[%clk 0:03:01]}  e5 {[%clk 0:02:08]} 10. a4 {[%clk 0:02:58]}  Bg4 {[%clk 0:02:06]} 11. Na3 {[%clk 0:02:58]}  Qd7 {[%clk 0:02:04]} 12. Nc4 {[%clk 0:02:58]}  O-O {[%clk 0:01:58]} 13. Ne3 {[%clk 0:02:57]}  Bh3 {[%clk 0:01:45]} 14. Ng5 {[%clk 0:02:57]}  Bxg2 {[%clk 0:01:44]} 15. Nxg2 {[%clk 0:02:58]}  d5 {[%clk 0:01:41]} 16. f4 {[%clk 0:02:56]}  dxe4 {[%clk 0:01:33]} 17. Nxe4 {[%clk 0:02:56]}  exf4 {[%clk 0:01:24]} 18. Bxf4 {[%clk 0:02:55]}  b6 {[%clk 0:01:01]} 19. Bh6 {[%clk 0:02:49]}  Nf5 {[%clk 0:00:54]} 20. Bxg7 {[%clk 0:02:47]}  Kxg7 {[%clk 0:00:54]} 21. Rf4 {[%clk 0:02:32]}  Rae8 {[%clk 0:00:46]} 22. Raf1 {[%clk 0:02:31]}  Ne5 {[%clk 0:00:40]} 23. Rd1 {[%clk 0:02:03]}  Qc6 {[%clk 0:00:27]} 24. Qf1 {[%clk 0:01:54]}  Ng4 {[%clk 0:00:23]} 25. Rxf5 {[%clk 0:01:51]}  gxf5 {[%clk 0:00:24]} 26. Qxf5 {[%clk 0:01:52]}  Qg6 {[%clk 0:00:20]} 27. Qf3 {[%clk 0:01:48]}  Ne5 {[%clk 0:00:17]} 28. Qe2 {[%clk 0:01:17]}  Nxd3 {[%clk 0:00:15]} 29. Qxd3 {[%clk 0:01:14]}  Qxe4 {[%clk 0:00:15]} 30. Qf1 {[%clk 0:01:14]}  Qg4 {[%clk 0:00:12]} 31. Rd5 {[%clk 0:01:09]}  f6 {[%clk 0:00:09]} 32. Kh2 {[%clk 0:01:03]}  Re5 {[%clk 0:00:09]} 33. Rd2 {[%clk 0:01:01]}  Rfe8 {[%clk 0:00:07]} 34. Nf4 {[%clk 0:01:00]}  Re3 {[%clk 0:00:06]} 35. Qg2 {[%clk 0:01:01]}  Qf3 {[%clk 0:00:05]} 36. Rd7+ {[%clk 0:00:53]}  Kg8 {[%clk 0:00:04]} 37. Qxf3 {[%clk 0:00:47]}  Rxf3 {[%clk 0:00:05]} 38. Nxh5 {[%clk 0:00:48]}  Re2+ {[%clk 0:00:03]} 39. Kh3 {[%clk 0:00:48]}  Rf1 {[%clk 0:00:03]} 40. Kg4 {[%clk 0:00:46]}  f5+ {[%clk 0:00:01]} 41. Kg5 {[%clk 0:00:46]}  Kf8 {[%clk 0:00:01]} 42. Rxa7 {[%clk 0:00:45]}  Ke8 {[%clk 0:00:00]} 43. Rb7 {[%clk 0:00:42]} 1-0


[Site "https://www.chess.com"]

[Event "Titled Tuesday Blitz July 18 Early 2023"]
[White "Tqebuchava, Zurab"]
[Black "Gatterer, Florian"]
[WhiteFideId "13601113"]
[BlackFideId "811688"]
[WhiteElo "2107"]
[BlackElo "2443"]
[Result "1/2-1/2"]
[Round "3"]
[TimeControl "180+2"]
[Date "2023.07.18"]
[WhiteClock "0:01:31"]
[BlackClock "0:01:25"]
[Board "168"]

1. e4 {[%clk 0:02:59]}  c5 {[%clk 0:02:59]} 2. Nf3 {[%clk 0:02:58]}  e6 {[%clk 0:03:00]} 3. b3 {[%clk 0:02:57]}  b6 {[%clk 0:02:59]} 4. Bb2 {[%clk 0:02:56]}  Bb7 {[%clk 0:03:00]} 5. e5 {[%clk 0:02:56]}  d5 {[%clk 0:02:58]} 6. exd6 {[%clk 0:02:55]}  Nf6 {[%clk 0:02:58]} 7. Bb5+ {[%clk 0:02:52]}  Bc6 {[%clk 0:02:49]} 8. Bxc6+ {[%clk 0:02:47]}  Nxc6 {[%clk 0:02:48]} 9. O-O {[%clk 0:02:44]}  Bxd6 {[%clk 0:02:47]} 10. d3 {[%clk 0:02:42]}  O-O {[%clk 0:02:41]} 11. Nbd2 {[%clk 0:02:41]}  a5 {[%clk 0:02:41]} 12. a4 {[%clk 0:02:39]}  Nd5 {[%clk 0:02:37]} 13. Nc4 {[%clk 0:02:31]}  Bc7 {[%clk 0:02:37]} 14. Nfe5 {[%clk 0:02:24]}  Nxe5 {[%clk 0:02:26]} 15. Nxe5 {[%clk 0:02:12]}  Qg5 {[%clk 0:02:01]} 16. Qg4 {[%clk 0:02:00]}  Qxg4 {[%clk 0:01:49]} 17. Nxg4 {[%clk 0:02:00]}  f6 {[%clk 0:01:49]} 18. Ne3 {[%clk 0:01:50]}  Nb4 {[%clk 0:01:30]} 19. Bc3 {[%clk 0:01:31]}  Nd5 {[%clk 0:01:25]} 1/2-1/2


[Site "https://www.chess.com"]

[Event "Titled Tuesday Blitz July 18 Early 2023"]
[White "Larina, Maria"]
[Black "favesaul"]
[WhiteFideId "24113182"]
[WhiteElo "2203"]
[BlackElo "2409"]
[Result "0-1"]
[Round "3"]
[TimeControl "180+2"]
[Date "2023.07.18"]
[WhiteClock "0:00:05"]
[BlackClock "0:00:12"]
[Board "169"]

1. e4 {[%clk 0:03:00]}  c5 {[%clk 0:02:58]} 2. Nc3 {[%clk 0:03:00]}  Nc6 {[%clk 0:02:57]} 3. g3 {[%clk 0:03:00]}  g6 {[%clk 0:02:57]} 4. Bg2 {[%clk 0:03:01]}  Bg7 {[%clk 0:02:57]} 5. d3 {[%clk 0:03:01]}  d6 {[%clk 0:02:57]} 6. Be3 {[%clk 0:03:01]}  e6 {[%clk 0:02:57]} 7. Qd2 {[%clk 0:03:01]}  Qa5 {[%clk 0:02:54]} 8. Nge2 {[%clk 0:02:56]}  Nd4 {[%clk 0:02:51]} 9. O-O {[%clk 0:02:40]}  Ne7 {[%clk 0:02:51]} 10. a3 {[%clk 0:02:31]}  O-O {[%clk 0:02:38]} 11. Rad1 {[%clk 0:01:48]}  Rb8 {[%clk 0:02:00]} 12. Qc1 {[%clk 0:01:48]}  Re8 {[%clk 0:01:49]} 13. Bh6 {[%clk 0:01:42]}  Bh8 {[%clk 0:01:49]} 14. f4 {[%clk 0:01:42]}  b5 {[%clk 0:01:44]} 15. Nxd4 {[%clk 0:01:39]}  cxd4 {[%clk 0:01:40]} 16. Ne2 {[%clk 0:01:37]}  Bb7 {[%clk 0:01:40]} 17. g4 {[%clk 0:01:30]}  f5 {[%clk 0:01:38]} 18. gxf5 {[%clk 0:01:27]}  exf5 {[%clk 0:01:38]} 19. Ng3 {[%clk 0:01:26]}  b4 {[%clk 0:01:28]} 20. axb4 {[%clk 0:01:26]}  Qxb4 {[%clk 0:01:29]} 21. Rde1 {[%clk 0:01:21]}  fxe4 {[%clk 0:01:19]} 22. Nxe4 {[%clk 0:01:19]}  Nf5 {[%clk 0:01:17]} 23. Bg5 {[%clk 0:01:12]}  Ne3 {[%clk 0:01:13]} 24. Rxe3 {[%clk 0:01:11]}  dxe3 {[%clk 0:01:13]} 25. c3 {[%clk 0:01:12]}  Qb6 {[%clk 0:01:12]} 26. Kh1 {[%clk 0:01:06]}  d5 {[%clk 0:01:06]} 27. Ng3 {[%clk 0:01:00]}  Bc6 {[%clk 0:00:42]} 28. b4 {[%clk 0:00:35]}  d4 {[%clk 0:00:40]} 29. Ne4 {[%clk 0:00:31]}  dxc3 {[%clk 0:00:38]} 30. Qc2 {[%clk 0:00:27]}  Bg7 {[%clk 0:00:29]} 31. Qa2+ {[%clk 0:00:21]}  Kh8 {[%clk 0:00:29]} 32. Rg1 {[%clk 0:00:17]}  e2 {[%clk 0:00:28]} 33. Qxe2 {[%clk 0:00:15]}  Qxb4 {[%clk 0:00:28]} 34. Qg4 {[%clk 0:00:12]}  c2 {[%clk 0:00:26]} 35. Bf6 {[%clk 0:00:12]}  Qb1 {[%clk 0:00:17]} 36. Bxg7+ {[%clk 0:00:09]}  Kxg7 {[%clk 0:00:17]} 37. Nd2 {[%clk 0:00:04]}  Qxg1+ {[%clk 0:00:16]} 38. Kxg1 {[%clk 0:00:04]}  c1=Q+ {[%clk 0:00:16]} 39. Nf1 {[%clk 0:00:04]}  Qc5+ {[%clk 0:00:16]} 40. Kh1 {[%clk 0:00:03]}  Bxg2+ {[%clk 0:00:17]} 41. Qxg2 {[%clk 0:00:03]}  Qd6 {[%clk 0:00:13]} 42. f5 {[%clk 0:00:03]}  Qf6 {[%clk 0:00:12]} 43. fxg6 {[%clk 0:00:03]}  hxg6 {[%clk 0:00:13]} 44. h4 {[%clk 0:00:03]}  Qxh4+ {[%clk 0:00:12]} 45. Kg1 {[%clk 0:00:04]}  Qd4+ {[%clk 0:00:11]} 46. Kh2 {[%clk 0:00:04]}  Rh8+ {[%clk 0:00:12]} 47. Kg3 {[%clk 0:00:05]}  Qh4+ {[%clk 0:00:12]} 48. Kf3 {[%clk 0:00:05]}  Rhf8+ {[%clk 0:00:13]} 49. Ke2 {[%clk 0:00:06]}  Rb2+ {[%clk 0:00:13]} 50. Kd1 {[%clk 0:00:06]}  Rxg2 {[%clk 0:00:12]} 51. Ne3 {[%clk 0:00:06]}  Qh1+ {[%clk 0:00:11]} 52. Nf1 {[%clk 0:00:05]}  Qxf1# {[%clk 0:00:12]} 0-1


[Site "https://www.chess.com"]

[Event "Titled Tuesday Blitz July 18 Early 2023"]
[White "WynnZawHtun82"]
[Black "Holtel, Jasper"]
[BlackFideId "12956376"]
[WhiteElo "2596"]
[BlackElo "2305"]
[Result "1-0"]
[Round "3"]
[TimeControl "180+2"]
[Date "2023.07.18"]
[WhiteClock "0:00:39"]
[BlackClock "0:00:09"]
[Board "170"]

1. Nf3 {[%clk 0:02:58]}  Nf6 {[%clk 0:02:48]} 2. g3 {[%clk 0:02:51]}  g6 {[%clk 0:02:48]} 3. Bg2 {[%clk 0:02:49]}  Bg7 {[%clk 0:02:48]} 4. O-O {[%clk 0:02:46]}  O-O {[%clk 0:02:49]} 5. d3 {[%clk 0:02:46]}  d6 {[%clk 0:02:48]} 6. e4 {[%clk 0:02:42]}  c5 {[%clk 0:02:48]} 7. Re1 {[%clk 0:02:36]}  Nc6 {[%clk 0:02:47]} 8. c3 {[%clk 0:02:34]}  Rb8 {[%clk 0:02:47]} 9. d4 {[%clk 0:02:33]}  cxd4 {[%clk 0:02:45]} 10. cxd4 {[%clk 0:02:33]}  Bg4 {[%clk 0:02:42]} 11. h3 {[%clk 0:02:28]}  Bxf3 {[%clk 0:02:42]} 12. Bxf3 {[%clk 0:02:29]}  e5 {[%clk 0:02:42]} 13. d5 {[%clk 0:02:23]}  Nd4 {[%clk 0:02:42]} 14. Bg2 {[%clk 0:02:23]}  Nd7 {[%clk 0:02:40]} 15. Nc3 {[%clk 0:02:23]}  b5 {[%clk 0:02:38]} 16. Be3 {[%clk 0:02:23]}  b4 {[%clk 0:02:12]} 17. Ne2 {[%clk 0:02:23]}  Qb6 {[%clk 0:01:50]} 18. Qd2 {[%clk 0:02:20]}  Rbc8 {[%clk 0:01:47]} 19. Rec1 {[%clk 0:02:20]}  a5 {[%clk 0:01:38]} 20. h4 {[%clk 0:02:18]}  a4 {[%clk 0:01:24]} 21. Kh1 {[%clk 0:01:43]}  Nc5 {[%clk 0:00:51]} 22. Nxd4 {[%clk 0:01:36]}  exd4 {[%clk 0:00:51]} 23. Bxd4 {[%clk 0:01:36]}  Rc7 {[%clk 0:00:42]} 24. Bxg7 {[%clk 0:01:26]}  Kxg7 {[%clk 0:00:42]} 25. Qd4+ {[%clk 0:01:17]}  Kg8 {[%clk 0:00:41]} 26. Rc4 {[%clk 0:01:12]}  b3 {[%clk 0:00:34]} 27. axb3 {[%clk 0:01:10]}  Qxb3 {[%clk 0:00:30]} 28. Ra3 {[%clk 0:01:05]}  Qb7 {[%clk 0:00:20]} 29. Qc3 {[%clk 0:01:02]}  Rfc8 {[%clk 0:00:19]} 30. h5 {[%clk 0:01:00]}  Nd7 {[%clk 0:00:19]} 31. h6 {[%clk 0:00:58]}  Ne5 {[%clk 0:00:19]} 32. Rxc7 {[%clk 0:00:54]}  Rxc7 {[%clk 0:00:20]} 33. Qd4 {[%clk 0:00:53]}  Rc1+ {[%clk 0:00:18]} 34. Kh2 {[%clk 0:00:51]}  Qe7 {[%clk 0:00:16]} 35. Rxa4 {[%clk 0:00:41]}  Qg5 {[%clk 0:00:09]} 36. Ra8+ {[%clk 0:00:39]} 1-0


[Site "https://www.chess.com"]